Cogmind - Beta 11.1 *** ADVENTURER MODE // 2022.08.22 @ 22:02:42 Player: Ms Vella Result: Destroyed by 8R-AWN with 8R-AWN's Boregun Performance ------------- Evolutions (1) 500 Regions Visited (5) 1000 Robots Destroyed (33) 165 Value Destroyed (692) 692 Prototype IDs (4) 80 Alien Tech Used (0) 0 Bonus (-319) -319 TOTAL SCORE: 2118 Bonus ------- Follower Combat Kills 7 Friendly Fire -326 Cogmind --------- Core Integrity 0/400 Matter 18/300 Energy 70/100 System Corruption 5% Temperature Cool (54) Movement Core (1000) Ox19 Location -9/Exiles Parts ------- > --- POWER (1) -------- (None) > --- PROPULSION (2) --- (None) > --- UTILITY (4) ------ High-capacity Storage Unit Hacking Suite Sensor Drone Bay (5/20) > --- WEAPON (2) ------- Particle Cannon > --- INVENTORY (20) --- Improved Heat Sink Cooling System Large Storage Unit Large Storage Unit Experimental Sensor Array Signal Interpreter Seismic Detector Salvage Targeting Computer Salvage Targeting Computer Light Armor Plating Hardened Light Armor Plating Authchip [Power] Particle Cannon Mini Grenade Launcher Peak State ------------ > --- POWER ------------ Light Nuclear Core > --- PROPULSION ------- Light Treads Light Treads > --- UTILITY ---------- High-capacity Storage Unit Hardened Light Armor Plating Hardened Light Armor Plating Hacking Suite > --- WEAPON ----------- Assault Cannon Flak Cannon > --- INVENTORY -------- Improved Heat Sink Cooling System Large Storage Unit Large Storage Unit Experimental Sensor Array Signal Interpreter Seismic Detector Seismic Detector Salvage Targeting Computer Salvage Targeting Computer Light Armor Plating Light Armor Plating Hardened Light Armor Plating Authchip [Power] Sensor Drone Bay EM Pulse Gun Particle Cannon Particle Cannon Particle Cannon Mini Grenade Launcher [Rating: 23] Favorites ----------- Power Ion Engine Engine Ion Engine Power Core Light Nuclear Core Propulsion Light Treads Treads Light Treads Leg Aluminum Leg Wheel Wheel Utility High-capacity Storage Unit Device Cooling System Storage High-capacity Storage Unit Hackware Hacking Suite Protection Hardened Light Armor Plating Weapon Light Cannon Energy Gun Medium Laser Energy Cannon Particle Cannon Ballistic Gun Light Assault Rifle Ballistic Cannon Light Cannon Launcher Mini Grenade Launcher Build | -11 -10 -10 -9 -9 -9 ------- Run | Scr Mat Min Mat Min Exi Slots Evolved 2 | . . . 2 . . Power . | . . . . . . Propulsion . | . . . . . . Utility 2 | . . . 2 . . Weapon . | . . . . . . Parts Attached 57 | 3 15 15 10 2 12 Power 7 | . 3 2 2 . . Engine 6 | . 3 2 1 . . Core 1 | . . . 1 . . Reactor . | . . . . . . Propulsion 11 | 2 3 2 2 . 2 Treads 7 | 2 3 . 2 . . Leg 2 | . . . . . 2 Wheel 2 | . . 2 . . . Hover . | . . . . . . Flight . | . . . . . . Utility 19 | . 6 5 4 . 4 Device 7 | . 1 2 2 . 2 Storage 1 | . 1 . . . . Processor . | . . . . . . Hackware 1 | . . . 1 . . Protection 10 | . 4 3 1 . 2 Artifact . | . . . . . . Weapon 20 | 1 3 6 2 2 6 Energy Gun 2 | . 1 . . . 1 Energy Cannon 4 | . . . 2 . 2 Ballistic Gun 2 | 1 . 1 . . . Ballistic Cannon 8 | . 2 3 . 1 2 Launcher 4 | . . 2 . 1 1 Special Weapon . | . . . . . . Impact Weapon . | . . . . . . Slashing Weapon . | . . . . . . Piercing Weapon . | . . . . . . Special Melee Weapon . | . . . . . . Unidentified Prototypes 2 | . . 2 . . . Parts Lost 19 | . 1 4 1 . 13 Power 2 | . . . 1 . 1 Propulsion 6 | . . 2 . . 4 Utility 6 | . 1 1 . . 4 Weapon 5 | . . 1 . . 4 Highest Loss Streak 7 | . 1 2 1 . 7 To Critical Strikes 7 | . . . . . 7 Average Slot Usage (%) 91 | . 99 84 85 100 68 Engine 10 | . 13 14 7 . . Core 1 | . . . 1 11 3 Treads 21 | . 27 18 15 22 7 Device 4 | . 1 4 9 11 4 Storage 13 | . 14 14 11 11 11 Hackware 2 | . . . 1 11 11 Protection 10 | . 12 6 11 11 11 Energy Gun 4 | . 9 . . . 2 Energy Cannon 3 | . . . 13 11 6 Ballistic Gun 4 | . 10 . 4 . . Ballistic Cannon 11 | . 7 23 4 10 8 Naked Turns . | . . . . . . Heaviest Build 66 | 11 56 65 61 62 66 Greatest Support 40 | 40 40 40 40 40 40 Greatest Overweight (x) 21 | . 18 21 2 1 19 Average Overweight (x) 1 | . . 2 1 1 2 Largest Inventory Capacity 20 | 8 20 20 20 20 20 Average Capacity 19 | 8 19 20 20 20 20 Most Carried 20 | 6 20 20 20 20 20 Average Carried 17 | 4 13 19 19 20 17 Final Capacity 20 | 8 20 20 20 20 20 Final Carried 20 | 2 20 18 20 20 14 Class Distribution -------------------- 73% | Mutant 23% | Hacker-Mutant Dominant Class ---------------- Mutant | -10/Materials Mutant | -10/Mines Mutant | -9/Materials Hacker-Mutant | -9/Mines Hacker-Mutant | -9/Exiles Resources | -11 -10 -10 -9 -9 -9 ----------- Run | Scr Mat Min Mat Min Exi Matter Collected 957 | 200 117 301 187 67 85 Remotely . | . . . . . . Salvage Created 756 | . 388 72 185 98 13 Parts 68 | . 24 10 20 14 . Haulers Intercepted . | . . . . . . Recyclers Shooed 3 | . 2 1 . . . Parts Field Recycled . | . . . . . . Retrieved Matter . | . . . . . . Parts Self-Destructed . | . . . . . . Prevented . | . . . . . . Kills | -11 -10 -10 -9 -9 -9 ------- Run | Scr Mat Min Mat Min Exi Combat Hostiles Destroyed 46 | . 13 17 4 7 5 Guns 14 | . 13 . 1 . . Cannons 20 | . . 12 3 4 1 AOE 12 | . . 5 . 3 4 Classes Destroyed 8 | . 2 3 3 . . Builder 2 | . . 1 . 1 . Operator 2 | . . . 2 . . Watcher 1 | . . . 1 . . Swarmer 15 | . 6 2 . 7 . Grunt 11 | . 7 . 3 1 . Sentry 1 | . . . 1 . . Demolisher 1 | . . 1 . . . Assembled 19 | . . 14 . . 5 Best Kill Streak 6 | . 5 6 4 5 5 Combat Bots Only 6 | . 5 6 3 4 5 Max Kills in Single Turn 2 | . 2 2 1 2 2 Gunslinging 1 | . 1 . . . . Exploded 2 | . . 2 . 2 2 Melee . | . . . . . . Uniques/NPCs Destroyed . | . . . . . . Combat | -11 -10 -10 -9 -9 -9 -------- Run | Scr Mat Min Mat Min Exi Damage Taken 3024 | . 578 562 173 197 1514 Core 573 | . 122 49 34 23 345 Absorbed by Shields . | . . . . . . Core Remaining (%) 65 | 100 . 31 . . . Volleys Fired 152 | . 38 35 15 11 53 Largest 2 | . 2 2 2 2 2 Hottest 136 | . 70 88 136 136 112 Shots Fired 233 | . 76 42 30 18 67 Gun 90 | . 76 . 8 . 6 Cannon 129 | . . 36 22 14 57 Launcher 14 | . . 6 . 4 4 Special . | . . . . . . Kinetic 113 | . 38 36 16 3 20 Thermal 100 | . 38 . 14 11 37 Explosive 14 | . . 6 . 4 4 Electromagnetic 6 | . . . . . 6 Robot Hit Streak 16 | . 16 9 10 4 12 Robot Miss Streak 4 | . 1 4 3 3 3 Penetration Max . | . . . . . . Secondary Targets 3 | . 3 . . . . Max Gunslinging Chain 1 | . 1 . . . . Shots Hit Robots 180 | . 62 33 23 9 53 Core Hits 120 | . 21 52 16 12 19 Critical Kills . | . . . . . . Critical Parts Destroyed . | . . . . . . Critical Strikes 5 | . 5 . . . . Burn 5 | . 5 . . . . Melee Attacks . | . . . . . . Impact . | . . . . . . Slashing . | . . . . . . Piercing . | . . . . . . Sneak Attacks . | . . . . . . Combat Hostiles . | . . . . . . Follow-up Attacks . | . . . . . . Damage Inflicted 3553 | . 725 1179 411 420 818 Guns 776 | . 717 . 55 . 4 Cannons 1586 | . . 598 354 185 449 Explosions 1173 | . . 573 . 235 365 Melee . | . . . . . . Ramming 18 | . 8 8 2 . . Kinetic 1479 | . 282 598 192 40 367 Thermal 879 | . 435 . 217 145 82 Explosive 1173 | . . 573 . 235 365 Electromagnetic 4 | . . . . . 4 Impact . | . . . . . . Slashing . | . . . . . . Piercing . | . . . . . . Highest Corruption 5 | . . 1 . . 5 Average Corruption 2 | . . 1 . . 4 Corruption Purged . | . . . . . . Corruption Blocked . | . . . . . . Effects 9 | . . 2 . . 7 Message Errors 1 | . . . . . 1 Matter Fused 3 | . . 1 . . 2 Heat Flow Errors 1 | . . 1 . . . Data Loss (minor) 1 | . . . . . 1 Misfires 1 | . . . . . 1 Alerts 1 | . . . . . 1 Weapon Failures 1 | . . . . . 1 Overload Shots . | . . . . . . Overflow Damage 41 | . . 18 4 17 2 Projectiles 14 | . . 9 4 1 . Explosions 27 | . . 9 . 16 2 Melee . | . . . . . . Knockbacks 29 | . . 24 1 2 2 Impact . | . . . . . . Kinetic 28 | . . 23 1 2 2 Secondary 1 | . . 1 . . . Self-Inflicted Damage 70 | . . 3 . 31 36 Shots 2 | . . . . 1 1 Rammed 6 | . 1 4 1 . . Targets Rammed 6 | . 1 4 1 . . Kicked . | . . . . . . Crushed . | . . . . . . Highest Temperature 289 | . 289 216 109 84 282 Average Temperature 79 | . 106 43 40 42 90 Received Heat Transfer 393 | . 306 . 78 . 9 Siege Activations . | . . . . . . Robots Corrupted . | . . . . . . Combat Hostiles . | . . . . . . Parts Fried . | . . . . . . Impact Corruptions . | . . . . . . Robots Melted . | . . . . . . Combat Hostiles . | . . . . . . Parts Melted 1 | . 1 . . . . Heat Transferred 2536 | . 1591 . 370 259 316 Parts Sabotaged . | . . . . . . Parts Stolen . | . . . . . . Parts Stripped . | . . . . . . Power Chain Reactions . | . . . . . . Missiles Intercepted . | . . . . . . Alert | -11 -10 -10 -9 -9 -9 ------- Run | Scr Mat Min Mat Min Exi Peak Influence 352 | . 298 129 201 352 . Initial 66 | . . . . 66 . Average 84 | . 64 10 113 263 . Maximum Alert Level 1 | . 1 . 1 1 . Low Security (%) 82 | 100 91 100 66 34 . Level 1 17 | . 8 . 33 65 . Level 2 . | . . . . . . Level 3 . | . . . . . . Level 4 . | . . . . . . Level 5 . | . . . . . . High Security . | . . . . . . Max Security . | . . . . . . Squads Dispatched 3 | . 1 . 2 . . Investigation 1 | . 1 . . . . Extermination . | . . . . . . Reinforcement 2 | . . . 2 . . Assault . | . . . . . . Garrison . | . . . . . . Intercept . | . . . . . . Searches Triggered . | . . . . . . Construction Impeded . | . . . . . . Haulers Reinforced . | . . . . . . Active Scanning Responses . | . . . . . . Cargo Convoy Interrupts . | . . . . . . Stealth | -11 -10 -10 -9 -9 -9 --------- Run | Scr Mat Min Mat Min Exi Distress Signals 2 | . 1 . 1 . . Communications Jammed . | . . . . . . Distress Signals . | . . . . . . Times Spotted 75 | . 25 21 13 8 8 Peak Tracking Total 9 | . 5 7 4 4 9 Tactical Retreats 4 | . 1 3 . . . Traps | -11 -10 -10 -9 -9 -9 ------- Run | Scr Mat Min Mat Min Exi Traps Triggered 5 | . 4 1 . . . Indirectly . | . . . . . . Trap Hack Attempts . | . . . . . . Triggered . | . . . . . . Disarmed . | . . . . . . Reprogrammed . | . . . . . . Reused . | . . . . . . Traps Extracted . | . . . . . . Installed . | . . . . . . Triggered . | . . . . . . Machines | -11 -10 -10 -9 -9 -9 ---------- Run | Scr Mat Min Mat Min Exi Machines Disabled 2 | . . 1 1 . . Max in Single Turn 1 | . . 1 1 . . Machines Sabotaged . | . . . . . . Garrisons Compromised . | . . . . . . Overloaded Fab Kills . | . . . . . . Hacking | -11 -10 -10 -9 -9 -9 --------- Run | Scr Mat Min Mat Min Exi Machines Accessed 12 | . 7 2 3 . . Terminals 9 | . 7 . 2 . . Fabricators . | . . . . . . Repair Stations . | . . . . . . Recycling Units . | . . . . . . Scanalyzers 1 | . . . 1 . . Garrison Access . | . . . . . . Total Hacks 34 | . 16 2 16 . . Successful 23 | . 8 2 13 . . Failed 10 | . 8 . 2 . . Catastrophic 1 | . 1 . . . . Database Lockouts 1 | . . . 1 . . Manual 21 | . 15 . 6 . . Terminals 24 | . 16 . 8 . . Fabricators . | . . . . . . Repair Stations . | . . . . . . Recycling Units . | . . . . . . Scanalyzers 8 | . . . 8 . . Garrison Access . | . . . . . . Terminal Hacks 12 | . 6 2 4 . . Record 1 | . . . 1 . . Robot Analysis 5 | . 3 . 2 . . Prototype ID Bank 1 | . . . 1 . . Open Door 2 | . . 2 . . . Terminal Index 1 | . 1 . . . . Alert Level 1 | . 1 . . . . Zone Layout 1 | . 1 . . . . Fabricator Hacks . | . . . . . . Repair Station Hacks . | . . . . . . Recycling Unit Hacks . | . . . . . . Scanalyzer 7 | . . . 7 . . Insert Component 3 | . . . 3 . . Analyze 4 | . . . 4 . . Garrison Access Hacks . | . . . . . . Unauthorized Hacks 4 | . 2 . 2 . . Terminals 4 | . 2 . 2 . . Botnet 4 | . 2 . 2 . . Fabricators . | . . . . . . Repair Stations . | . . . . . . Recycling Units . | . . . . . . Scanalyzers . | . . . . . . Garrison Access . | . . . . . . Data Cores Recovered . | . . . . . . Used . | . . . . . . Hacking Detections 9 | . 6 . 3 . . Full Trace Events 2 | . 1 . 1 . . Feedback Events . | . . . . . . Feedback Blocked . | . . . . . . Robot Schematics Acquired . | . . . . . . Robots Built . | . . . . . . Authchips . | . . . . . . Time . | . . . . . . Total Robot Build Rating . | . . . . . . Part Schematics Acquired 2 | . . . 2 . . Parts Built . | . . . . . . Authchips . | . . . . . . Time . | . . . . . . Total Part Build Rating . | . . . . . . Parts Repaired . | . . . . . . Time . | . . . . . . Parts Recycled . | . . . . . . Recycled Matter . | . . . . . . Retrieved Matter . | . . . . . . Retrieved Components . | . . . . . . Parts Scanalyzed 3 | . . . 3 . . Part Schematics Acquired 2 | . . . 2 . . Parts Damaged . | . . . . . . Bothacking | -11 -10 -10 -9 -9 -9 ------------ Run | Scr Mat Min Mat Min Exi Used RIF Installer . | . . . . . . Robots Hacked . | . . . . . . Non-combat . | . . . . . . Combat . | . . . . . . Robot Hacks Applied . | . . . . . . Relay Couplers Released . | . . . . . . Fabnet Peak Effective % . | . . . . . . Robots Rewired . | . . . . . . Allies Hacked . | . . . . . . Hacks Repelled . | . . . . . . Allies | -11 -10 -10 -9 -9 -9 -------- Run | Scr Mat Min Mat Min Exi Total Allies 3 | . . . . 3 . Largest Group 3 | . . . . 3 2 Highest-Rated Group 40 | . . . . 40 32 Highest-Rated Ally 16 | . . . . 16 16 Total Orders 3 | . . 1 . . 2 EXPLORE 3 | . . 1 . . 2 Ally Attacks 14 | . . . . 7 7 Total Damage 72 | . . . . 59 13 Kills 1 | . . . . 1 . Allies Corrupted . | . . . . . . Allies Melted . | . . . . . . Intel | -11 -10 -10 -9 -9 -9 ------- Run | Scr Mat Min Mat Min Exi Robot Analysis Total 5 | . 3 . 2 . . Derelict Logs Recovered 1 | . . 1 . . . Drone Launches 40 | . . 20 . . 20 Drone Recoveries 25 | . . 20 . . 5 Exploration | -11 -10 -10 -9 -9 -9 ------------- Run | Scr Mat Min Mat Min Exi Turns Passed 4095 | 6 1672 1119 392 576 330 Spaces Moved 1367 | 1 640 277 176 223 50 Core 29 | . 1 24 . . 4 Treads 1226 | 1 639 235 91 223 37 Legs 9 | . . . . . 9 Wheels 103 | . . 18 85 . . Hover . | . . . . . . Flight . | . . . . . . Fastest Speed 110 | 160 160 110 110 240 240 Average Speed 244 | 160 236 295 177 240 326 Slowest Speed 1100 | 160 950 1100 320 240 1000 Overloaded Moves . | . . . . . . Propulsion Burnouts . | . . . . . . Robots Hopped . | . . . . . . Cave-ins Triggered . | . . . . . . Exploration Rate (%) 54 | 2 90 93 24 57 60 Regions Visited 5 Branch Regions 3 Pre-discovered Areas . | . . . . . . Known Exits Taken . | . . . . . . Unknown Exits Taken 5 | 1 1 1 1 1 . Scrap Searched 3 | . . 1 . 2 . Spaces Dug . | . . . . . . Terrain Destroyed 109 | . . 43 . 39 27 Melee . | . . . . . . Projectile 4 | . . . . . 4 AOE 105 | . . 43 . 39 23 Terrain Rammed . | . . . . . . Walls Destroyed . | . . . . . . Machines Disabled . | . . . . . . Actions | -11 -10 -10 -9 -9 -9 --------- Run | Scr Mat Min Mat Min Exi Total 1860 | 7 729 506 225 246 147 Wait 234 | . 11 166 14 11 32 Move 1362 | . 639 276 175 222 50 Hop . | . . . . . . Pick Up 26 | . 19 4 3 . . Fast Attach 20 | . 8 2 8 . 2 Attach 12 | 2 2 2 . . 6 Detach 2 | . 1 . 1 . . Swap 25 | 1 5 11 2 2 4 Drop 21 | 4 5 6 6 . . Fire 152 | . 38 35 15 11 53 Melee . | . . . . . . Ram 4 | . . 4 . . . Kick . | . . . . . . Crush 2 | . 1 . 1 . . Escape Stasis . | . . . . . . Rewire . | . . . . . . Trap . | . . . . . . Miscellaneous . | . . . . . . Route ------- -11/Scrapyard -10/Materials (discovered 3 exits: *Mat x2 / *Min) -10/Mines (discovered 2 exits: *Mat x2) -9/Materials -9/Mines -9/Exiles (discovered 1 exit: [*Min]) History --------- Turn | Location | Event 7 | -11/Scrapyard | Discovered new exit (range 0) 7 | -11/Scrapyard | Entered Materials 311 | -10/Materials | Build established: Mutant 530 | -10/Materials | Discovered new exit (range 9) 806 | -10/Materials | Discovered new exit (range 13) 1641 | -10/Materials | Discovered new exit (range 12) 1679 | -10/Materials | Entered Mines 1734 | -10/Mines | Met a Derelict bent on vengeance 1918 | -10/Mines | Found the Drone Emporium 1929 | -10/Mines | Found Prototype Device 1930 | -10/Mines | Identified Sensor Drone Bay 1959 | -10/Mines | Discovered new exit (range 18) 1974 | -10/Mines | Discovered new exit (range 27) 2051 | -10/Mines | Found a damaged Exp. Sensor Array with a note attached 2056 | -10/Mines | Found Prototype Device 2066 | -10/Mines | Identified Exp. Sensor Array 2184 | -10/Mines | Met a Derelict who couldn't figure out how to use a Trap Extractor 2287 | -10/Mines | Learned Materials terminal intel 2395 | -10/Mines | Assembled infested the area 2420 | -10/Mines | Core integrity fell below 50% 2798 | -10/Mines | Entered Materials 2798 | -9/Materials | Evolved 2 slots: Utility x2 2799 | -9/Materials | Loaded intel: 12 terminal locations 2865 | -9/Materials | Central database locked down 3139 | -9/Materials | Discovered new exit (range 15) 3190 | -9/Materials | Entered Mines 3225 | -9/Mines | Assisted by bots powering up and referring to "LRC-V3" 3438 | -9/Mines | Build established: Hacker-Mutant 3752 | -9/Mines | Deemed a non-threat by the Exiles lab entrance 3752 | -9/Mines | Discovered new exit (range 5) 3766 | -9/Mines | Entered Exiles 3766 | -9/Exiles | Accompanied by 2 allies 3827 | -9/Exiles | Met 8R-AWN 3858 | -9/Exiles | Attacked by the Exiles 3937 | -9/Exiles | Lost 6 parts (1p2n1u2w) 3999 | -9/Exiles | Core integrity fell below 50% 4047 | -9/Exiles | Discovered new exit (range 34) 4063 | -9/Exiles | Lost 7 parts (2n3u2w) 4067 | -9/Exiles | Core integrity fell below 20% 4096 | -9/Exiles | Destroyed by 8R-AWN with 8R-AWN's Boregun Last Messages --------------- 04075_ HV Slug penetrates Machine. 04075_ Penetrated by HV Slug. 04075_ HV Slug penetrates Machine. 04079_ Penetrated by HV Slug. 04079_ HV Slug penetrates Machine. 04079_ Penetrated by HV Slug. 04079_ HV Slug penetrates Machine. 04079_ Machine disabled. 04083_ Penetrated by HV Slug. 04083_ HV Slug penetrates Wall. 04083_ HV Slug penetrates Machine. 04083_ HV Slug penetrates Wall. 04087_ Penetrated by HV Slug. 04087_ HV Slug penetrates Wall. 04092_ Penetrated by HV Slug. 04092_ HV Slug penetrates Wall. 04092_ Penetrated by HV Slug. 04092_ HV Slug penetrates Wall. 04095_ Wall collapses. 04096_ Penetrated by HV Slug. Map ----- +----------------------------------------------------+ | """#????????????????????????????????????? | | """"????????????????????????????????????? | | """#????????????????????????????????????? | | "X" """"????????????????????????????????????? | | """ #????????????????????????????????????? | | """""""""#????????????????????????????????????? | | ###########????????????????????????????????????? | | #??????????????????????????????????????????????? | | #??????????????????????????????????????????????? | | ##?????????????????????????????????????????????? | | ##???###########??????????????????????????????? | | #####"""""""""##?????????????????????????????? | | " """ """"##????????????????????????????? | | "" " #????????????????????????????? | | " """#????????????????????????????? | | " "#??????????######????????????? | | " "##??????##?# % %#????????????? | | ""###????# ## ##???????????? | | """#????## ;#???????????? | | "" "######; [ ############# | | ###""" ## [ ##"""""""" | | ??##""" # " | | ???#"""" g % % | | ??##"" % | | ###"""" ;#" | | """ @ # " """#### | | " % # #######??#### | | ;;;"#" #???????????#### | | ## ##??????????????? | | " % ## # # ###???????????????? | | "" """ "### ###?????????????????? | | ##""" " " ""# "##?# ##???????????????????? | | ######""" """;;" "##?? ?????????????????????? | | #????###""""#######;###??# #?????????????????????? | | ####???######????? ##???? #??????????????????????? | | "!#????????????? #????? ???????????????????????? | | !#???????????? #??????#????????????????????????? | | "#????????????#????????????????????????????????? | | "!"#?????????????????????????????????????????????? | | ####?????????????????????????????????????????????? | | ?????????????????????????????????????????????????? | | ?????????????????????????????????????????????????? | | ?????????????????????????????????????????????????? | | ?????????????????????????????????????????????????? | | ?????????????????????????????????????????????????? | | ?????????????????????????????????????????????????? | | ?????????????????????????????????????????????????? | | ?????????????????????????????????????????????????? | | ?????????????????????????????????????????????????? | | ?????????????????????????????????????????????????? | +----------------------------------------------------+ Best States ------------- Heat Dissipation 64 Energy Generation 14 Energy Capacity 275 Matter Stores 300 Matter Capacity 300 Sight Range 16 Terrain Scan Density 10 Armor Coverage 300 Resistance: KI 20 Resistance: TH 20 Resistance: EX 20 Resistance: EM 20 Resistance: I 20 Resistance: S 20 Resistance: P 20 Evasion (%) 40 Recoil Reduction 2 Offensive Hacking 20 Authchip Count 1 Item Schematics ----------------- Hacking Suite | -9/Materials | Scanalyzed Hrd. Light Armor Plating | -9/Materials | Scanalyzed Robot Schematics ------------------ None Fabricated ------------ Nothing Alien Tech Used ----------------- None Achievements -------------- None Challenges ------------ None Game ------ Seed CorruptionActuatorTearclaws Manual? 0 Play Time 00:37:07 Cumulative 1040.9 hours Start 2022.08.22 @ 20:32:57 End 2022.08.22 @ 22:02:42 Sessions 1 Manual Loads 0 Difficulty Adventurer Special Mode None Game No. 216 Rogue 1 Adventurer 215 Explorer 0 Win Type - Total 5 Types 4/0/1/0/0/0/0/0/0 Lore% 71 Gallery% 85 Achievement% 66 Wizard Run 0 Options --------- ASCII 0 Keyboard 0 Movement Mouse Keybinds 0 Fullscreen 0 Font 16/SmallcapsGlow Map View 76x50 Tactical HUD 1 Map Filters NONE Filters BRIGHTNESS(125)|SATURATION(75)|LOW_CONTRAST(13,24,33)|SHIFT_HUE(130) Steam 1 RUN: 8d722097-1327-43d9-9090-f91a99263d0d